Cogmind - Beta 13 @@@ ROGUE MODE // 2024.05.31 @ 11:16:03 Player: Kat Result: Self-destructed Performance ------------- Evolutions (1) 500 Regions Visited (2) 400 Robots Destroyed (17) 85 Value Destroyed (433) 433 Prototype IDs (0) 0 Alien Tech Used (0) 0 Bonus (0) 0 TOTAL SCORE: 1418 Bonus ------- None Cogmind --------- Core Integrity 276/400 Matter 267/300 Energy 265/265 System Corruption 0% Temperature Cool (0) Movement Treading (320) Ox2 Location -9/Materials Parts ------- > --- POWER (1) -------- Improved Ion Engine > --- PROPULSION (3) --- Light Treads Aluminum Leg > --- UTILITY (3) ------ High-capacity Storage Unit Improved Terrain Scanner Hardened Light Armor Plating > --- WEAPON (2) ------- Heavy Assault Rifle > --- INVENTORY (20) --- Large Battery (200) Sensor Array Transport Network Coupler Peak State ------------ > --- POWER ------------ Improved Ion Engine > --- PROPULSION ------- Aluminum Leg Aluminum Leg Aluminum Leg > --- UTILITY ---------- High-capacity Storage Unit Improved Terrain Scanner Hardened Light Armor Plating > --- WEAPON ----------- Beam Rifle Heavy Assault Rifle > --- INVENTORY -------- Ion Engine Large Battery Sensor Array Seismic Detector Transport Network Coupler [Rating: 15] Favorites ----------- Power Light Ion Engine Engine Light Ion Engine Propulsion Aluminum Leg Treads Light Treads Leg Aluminum Leg Flight Unit Flight Unit Utility Improved Terrain Scanner Device Improved Terrain Scanner Storage High-capacity Storage Unit Protection Hardened Light Armor Plating Weapon Medium Laser Energy Gun Medium Laser Ballistic Gun Heavy Assault Rifle Special Weapon Welding Torch Build | -11 -10 -9 ------- Run | Yrd Mat Mat Slots Evolved 2 | . . 2 Power . | . . . Propulsion 1 | . . 1 Utility 1 | . . 1 Weapon . | . . . Parts Attached 24 | 8 8 8 Power 4 | 2 1 1 Engine 4 | 2 1 1 Core . | . . . Reactor . | . . . Propulsion 9 | 2 3 4 Treads 2 | . . 2 Leg 6 | 2 2 2 Wheel . | . . . Hover . | . . . Flight 1 | . 1 . Utility 5 | 2 2 1 Device 3 | 2 1 . Storage 1 | . 1 . Processor . | . . . Hackware . | . . . Protection 1 | . . 1 Artifact . | . . . Weapon 6 | 2 2 2 Energy Gun 4 | 2 1 1 Energy Cannon . | . . . Ballistic Gun 1 | . . 1 Ballistic Cannon . | . . . Launcher . | . . . Special Weapon 1 | . 1 . Impact Weapon . | . . . Slashing Weapon . | . . . Piercing Weapon . | . . . Special Melee Weapon . | . . . Unidentified Prototypes . | . . . Parts Lost 6 | . 3 3 Power 1 | . 1 . Propulsion 2 | . . 2 Utility . | . . . Weapon 3 | . 2 1 Highest Loss Streak 3 | . 2 3 To Critical Strikes . | . . . Average Slot Usage (%) 81 | . 84 77 Engine 8 | . 8 9 Treads 1 | . . 2 Leg 24 | . 28 18 Device 17 | . 22 11 Storage 7 | . 5 11 Protection 4 | . . 10 Energy Gun 11 | . 16 4 Ballistic Gun 3 | . . 9 Special Weapon 1 | . 1 . Naked Turns . | . . . Heaviest Build 59 | 8 48 59 Greatest Support 30 | 20 20 30 Greatest Overweight (x) 5 | . 2 5 Average Overweight (x) . | . . 2 Largest Inventory Capacity 20 | 5 20 20 Average Capacity 14 | 5 11 20 Most Carried 12 | 3 9 12 Average Carried 4 | . 4 4 Final Capacity 20 | 5 20 20 Final Carried 9 | . 9 3 Class Distribution -------------------- 78% | Mutant 21% | Scavenger-Mutant Dominant Class ---------------- Mutant | -10/Materials Scavenger-Mutant | -9/Materials Resources | -11 -10 -9 ----------- Run | Yrd Mat Mat Matter Collected 492 | 280 87 125 Remotely . | . . . Salvage Created 533 | 66 294 173 Parts 38 | 6 18 14 Haulers Intercepted . | . . . Recyclers Shooed . | . . . Parts Field Recycled . | . . . Retrieved Matter . | . . . Parts Self-Destructed . | . . . Prevented . | . . . Kills | -11 -10 -9 ------- Run | Yrd Mat Mat Combat Hostiles Destroyed 11 | 1 7 3 Guns 9 | 1 5 3 Cannons 1 | . 1 . Classes Destroyed 6 | 2 3 1 Worker 1 | . 1 . Tunneler 1 | 1 . . Watcher 4 | . 2 2 Swarmer 2 | . 2 . Grunt 7 | 1 5 1 Sentry 2 | . . 2 Best Kill Streak 3 | 2 3 1 Combat Bots Only 2 | 1 2 1 Max Kills in Single Turn 2 | 2 1 1 Gunslinging . | . . . Exploded . | . . . Melee . | . . . Uniques/NPCs Destroyed . | . . . Combat | -11 -10 -9 -------- Run | Yrd Mat Mat Hostile Shots Fired 103 | 5 48 50 Missed 21 | . 10 11 Damage Taken 1079 | 53 451 575 Core 260 | 30 106 124 Absorbed by Shields . | . . . Core Remaining (%) 66 | 88 45 . Volleys Fired 70 | 4 35 31 Largest 2 | 2 2 2 Hottest 90 | 90 90 79 Shots Fired 89 | 8 44 37 Gun 84 | 8 39 37 Cannon . | . . . Launcher . | . . . Special 5 | . 5 . Kinetic 29 | . . 29 Thermal 56 | 8 40 8 Explosive . | . . . Electromagnetic 4 | . 4 . Robot Hit Streak 8 | 1 6 8 Robot Miss Streak 4 | 1 4 3 Penetration Max . | . . . Secondary Targets . | . . . Shots Hit Robots 54 | 4 23 27 Core Hits 29 | 3 15 11 Critical Kills . | . . . Critical Parts Destroyed 1 | . . 1 Critical Strikes 4 | . 1 3 Burn 3 | . 1 2 Destroy 1 | . . 1 Melee Attacks . | . . . Impact . | . . . Slashing . | . . . Piercing . | . . . Sneak Attacks . | . . . Combat Hostiles . | . . . Follow-up Attacks . | . . . Damage Inflicted 790 | 54 290 446 Guns 784 | 54 284 446 Cannons . | . . . Explosions . | . . . Melee . | . . . Ramming . | . . . Kinetic 365 | . . 365 Thermal 404 | 54 269 81 Explosive . | . . . Electromagnetic 21 | . 21 . Impact . | . . . Slashing . | . . . Piercing . | . . . Highest Corruption 1 | . 1 . Average Corruption 1 | . 1 . Corruption Purged . | . . . Corruption Blocked . | . . . Effects 6 | . 6 . Matter Fused 3 | . 3 . Energy Discharges 1 | . 1 . Data Loss (minor) 1 | . 1 . Alerts 1 | . 1 . Overload Shots . | . . . Overflow Damage . | . . . Projectiles . | . . . Explosions . | . . . Melee . | . . . Knockbacks . | . . . Impact . | . . . Kinetic . | . . . Secondary . | . . . Self-Inflicted Damage . | . . . Shots . | . . . Rammed . | . . . Targets Rammed . | . . . Kicked . | . . . Crushed . | . . . Highest Temperature 150 | 150 130 131 Average Temperature 49 | 82 46 40 Received Heat Transfer 489 | 30 234 225 Siege Activations . | . . . Robots Corrupted . | . . . Combat Hostiles . | . . . Parts Fried . | . . . Impact Corruptions . | . . . Robots Melted 1 | . 1 . Combat Hostiles 1 | . 1 . Parts Melted 1 | . . 1 Heat Transferred 1408 | 137 901 370 Parts Sabotaged . | . . . Parts Stolen . | . . . Parts Stripped . | . . . Power Chain Reactions . | . . . Alert | -11 -10 -9 ------- Run | Yrd Mat Mat Peak Influence 122 | 25 122 117 Initial 16 | . 16 15 Average 55 | 9 60 55 Maximum Alert Level . | . . . Low Security (%) 100 | 100 100 100 Level 1 . | . . . Level 2 . | . . . Level 3 . | . . . Level 4 . | . . . Level 5 . | . . . High Security . | . . . Max Security . | . . . Squads Dispatched 1 | . 1 . Investigation 1 | . 1 . Extermination . | . . . Reinforcement . | . . . Assault . | . . . Garrison . | . . . Intercept . | . . . Searches Triggered . | . . . Construction Impeded . | . . . Haulers Reinforced . | . . . Active Scanning Responses . | . . . Cargo Convoy Interrupts . | . . . Stealth | -11 -10 -9 --------- Run | Yrd Mat Mat Distress Signals 1 | . 1 . Communications Jammed . | . . . Distress Signals . | . . . Times Spotted 31 | 1 20 10 Peak Tracking Total 3 | 1 3 3 Tactical Retreats 1 | . 1 . Traps | -11 -10 -9 ------- Run | Yrd Mat Mat Traps Triggered 2 | . 2 . Indirectly . | . . . Trap Hack Attempts . | . . . Triggered . | . . . Disarmed . | . . . Reprogrammed . | . . . Reused . | . . . Traps Extracted . | . . . Installed . | . . . Triggered . | . . . Machines | -11 -10 -9 ---------- Run | Yrd Mat Mat Machines Disabled . | . . . Max in Single Turn . | . . . Machines Repaired . | . . . Machines Dismantled . | . . . Machines Sabotaged . | . . . Overloaded Fab Kills . | . . . Hacking | -11 -10 -9 --------- Run | Yrd Mat Mat Machines Accessed 1 | . 1 . Terminals 1 | . 1 . Fabricators . | . . . Repair Stations . | . . . Recycling Units . | . . . Scanalyzers . | . . . Garrison Access . | . . . Total Hacks 3 | . 3 . Successful . | . . . Failed 3 | . 3 . Catastrophic . | . . . Database Lockouts . | . . . Manual . | . . . Terminals 3 | . 3 . Fabricators . | . . . Repair Stations . | . . . Recycling Units . | . . . Scanalyzers . | . . . Garrison Access . | . . . Terminal Hacks . | . . . Fabricator Hacks . | . . . Repair Station Hacks . | . . . Recycling Unit Hacks . | . . . Scanalyzer . | . . . Garrison Access Hacks . | . . . Unauthorized Hacks . | . . . Terminals . | . . . Fabricators . | . . . Repair Stations . | . . . Recycling Units . | . . . Scanalyzers . | . . . Garrison Access . | . . . Data Cores Recovered . | . . . Used . | . . . Hacking Detections 1 | . 1 . Full Trace Events 1 | . 1 . Feedback Events . | . . . Feedback Blocked . | . . . Robot Schematics Acquired . | . . . Robots Built . | . . . Authchips . | . . . Time . | . . . Total Robot Build Rating . | . . . Part Schematics Acquired . | . . . Parts Built . | . . . Authchips . | . . . Time . | . . . Total Part Build Rating . | . . . Parts Repaired . | . . . Time . | . . . Parts Recycled . | . . . Recycled Matter . | . . . Retrieved Matter . | . . . Retrieved Components . | . . . Parts Scanalyzed . | . . . Part Schematics Acquired . | . . . Parts Damaged . | . . . Bothacking | -11 -10 -9 ------------ Run | Yrd Mat Mat Used RIF Installer . | . . . Robots Hacked . | . . . Non-combat . | . . . Combat . | . . . Robot Hacks Applied . | . . . Relay Couplers Released . | . . . Fabnet Peak Effective % . | . . . Robots Rewired . | . . . Allies Hacked . | . . . Hacks Repelled . | . . . Allies | -11 -10 -9 -------- Run | Yrd Mat Mat Total Allies . | . . . Largest Group . | . . . Highest-Rated Group . | . . . Highest-Rated Ally . | . . . Total Orders . | . . . Ally Attacks . | . . . Total Damage . | . . . Kills . | . . . Allies Corrupted . | . . . Allies Melted . | . . . Intel | -11 -10 -9 ------- Run | Yrd Mat Mat Robot Analysis Total . | . . . Derelict Logs Recovered . | . . . Drone Launches . | . . . Drone Recoveries . | . . . Exploration | -11 -10 -9 ------------- Run | Yrd Mat Mat Turns Passed 1708 | 117 960 631 Spaces Moved 734 | 83 464 187 Core 15 | 15 . . Treads 46 | . . 46 Legs 673 | 68 464 141 Wheels . | . . . Hover . | . . . Flight . | . . . Fastest Speed 50 | 50 120 190 Average Speed 188 | 107 161 290 Slowest Speed 470 | 120 260 470 Overloaded Moves . | . . . Propulsion Burnouts . | . . . Robots Hopped . | . . . Cave-ins Triggered . | . . . Exploration Rate (%) 25 | 7 56 12 Regions Visited 2 Branch Regions . Pre-discovered Areas . | . . . Known Exits Taken . | . . . Unknown Exits Taken 2 | 1 1 . Scrap Searched . | . . . Spaces Dug . | . . . Terrain Destroyed . | . . . Melee . | . . . Projectile . | . . . AOE . | . . . Terrain Rammed . | . . . Walls Destroyed . | . . . Machines Disabled . | . . . Actions | -11 -10 -9 --------- Run | Yrd Mat Mat Total 978 | 103 633 242 Wait 104 | . 104 . Move 732 | 82 463 187 Hop . | . . . Pick Up 28 | 8 14 6 Fast Attach . | . . . Attach 22 | 7 7 8 Detach 8 | . 5 3 Swap 2 | 1 1 . Drop 12 | 1 4 7 Fire 70 | 4 35 31 Melee . | . . . Ram . | . . . Kick . | . . . Crush . | . . . Escape Stasis . | . . . Rewire . | . . . Trap . | . . . Miscellaneous . | . . . Route ------- -11/Scrapyard -10/Materials (discovered 2 exits: [*Mat] / [*Min]) -9/Materials History --------- Turn | Location | Event 2 | -11/Scrapyard | Met Revision 17 60 | -11/Scrapyard | Discovered new exit (range 8) 118 | -11/Scrapyard | Entered Materials 301 | -10/Materials | Build established: Mutant 700 | -10/Materials | Core integrity fell below 50% 778 | -10/Materials | Discovered new exit (range 8) 857 | -10/Materials | Discovered new exit (range 11) 1078 | -10/Materials | Entered another Materials area 1078 | -9/Materials | Evolved 2 slots: Propulsion x1, Utility x1 1359 | -9/Materials | Lost 3 parts (2n1w) 1709 | -9/Materials | Self-destructed Last Messages --------------- G-34 Mercenary destroyed. R-06 Scavenger collects Aluminum Leg. K-01 Serf collects debris. Acquired 33 matter. K-01 Serf collects debris. R-06 Scavenger collects Ion Engine. Acquired 52 matter. K-01 Serf collects debris. W-16 Scout destroyed. K-01 Serf collects debris. R-06 Scavenger collects Hover Unit. K-01 Serf collects debris. R-06 Scavenger collects Signal Interpreter. K-01 Serf collects debris. Acquired 40 matter. K-01 Serf collects debris. W-16 Scout suffers critical hit (Destroy). Destroyed Hover Unit. W-16 Scout destroyed. K-01 Serf collects debris. Map ----- +----------------------------------------------------+ | ?????????????????????????????????????????????#???? | | ?????????????????????????????????????????????????? | | ???????????????????????????????????????????#???#?? | | ????????????????????????????????????????????????#? | | ????????????????????????????????????????????#????? | | ??????????????????????????????????????????#????#?? | | ?????????????????????????????????????????????????? | | ?????????????????????????????????????????????????? | | ????????????????????????????????????????#???#????? | | ????????????????????????????????????#?????????#??? | | ?????????????????????????????????????????#??#???#? | | ??????????????????? ??????#??#?????????#??######## | | ??????????????????????????#???##??######### | | ???????????????????? ??##?##???#?## # """ | | ????????????????????????????#####?# # """ | | ??????????????????????#????? T ?# # | """ | | ?????????????? ??? ????#???? ?# # | | ?????????????????????#??????] ## # """ | | ????????????????????#?????? ? ! ## # """ | | ????????? ?????#??##????????? ## # """ | | ???????????????? ?? ?#?? ""?"" ## # | | ?????????? ? # "?? ####????"" ## # | | ??????????????# ""??+ +?"??"? ## # | | ??????????????# """?# #? ?? ? ## ######## | | ??????????????# # ########+######+########## | | ??????????????# """ # @ !% | | ??????????????# """ + % | | ???????????? ?# """ #% | | ??????????? ??# # %#####+################### | | ????????? ????# """ # ##? ??#?#?#?##?????## | | ??????????????# ""??# #? ?? ?#?##??#???##?? | | ??????????????+ "?"?# a #??? ? #?#??##?#??#??# | | ??????????????# ? ?# #???"? #????#????#???? | | ????????????????#????# ##?"?""?? #?????##??????? | | ?????????????????????# #?????? ??#? ????????#??? | | ?????????? ????????#? ??"????????? ? ????#?### | | ????????????????????? ????????????? ???????#?? | | ?????????????? ?????# ???? ? ##? ??"?????#?? | | ?????????????? ?????# ##??#????????""????#???? | | ????????????????????# #????????#? ?? ??#?????? | | ????????????????????## ###????????#?#?????#????? | | ?????????????????????# ? ?? ??????????????????? | | ?????????????????????# ????????????????????????? | | ?????????????????????# ????????????????????????? | | ?????????????????????? ????????????????????????? | | ?????????????????????????????????????????????????? | | ?????????????????????????????????????????????????? | | ?????????????????????????????????????????????????? | | ?????????????????????????????????????????????????? | | ?????????????????????????????????????????????????? | +----------------------------------------------------+ Best States ------------- Heat Dissipation 28 Energy Generation 12 Energy Capacity 265 Matter Stores 300 Matter Capacity 300 Sight Range 16 Terrain Scan Range 16 Terrain Scan Density 10 ECM Strength 1 Armor Coverage 150 Evasion (%) 55 Recoil Reduction 1 Item Schematics ----------------- None Robot Schematics ------------------ None Fabricated ------------ Nothing Alien Tech Used ----------------- None Achievements -------------- It's Just You Challenges ------------ None Game ------ Seed CorruptionStorageBoregun Manual? 0 Play Time 00:21:00 Cumulative 1.5 hours Start 2024.05.31 @ 10:56:21 End 2024.05.31 @ 11:16:03 Sessions 1 Manual Loads 0 Difficulty Rogue Special Mode None Game No. 3 Rogue 3 Adventurer 0 Explorer 0 Win Type - Total 0 Types 0/0/0/0/0/0/0/0/0 Lore% 0 Gallery% 4 Achievement% 3 Wizard Run 0 Options --------- Layout 1 ASCII 0 Keyboard 0 Movement Mouse Keybinds 0 Fullscreen 2 Font 24/Smallcaps Map View 50x35 Zoom Use 0% Tactical HUD 0 Map Filters NONE Filters NONE Steam 1 RUN: 99cb1fd8-d95c-4e91-a3b4-5b247d295f40